bitfinex/quotes_SOLUSD_20250414
["timestamp","ask_amount","ask_price","bid_price","bid_amount"]
[1744629806734,11.66825705,132.69,132.64,11.66835705]
[1744629806919,11.66825705,132.69,132.64,0.0001]
[1744629807229,7.5369,132.68,132.64,11.66835705]
[1744629807427,19.20515705,132.68,132.64,0.0001]
[1744629807623,7.5369,132.68,132.64,11.66835705]
[1744629808035,7.5363,132.69,132.64,0.0001]
[1744629808239,7.5363,132.69,132.65,11.66825705]
[1744629809033,19.20455705,132.69,132.64,11.66835705]
[1744629809616,19.20455705,132.69,132.64,94.14235705]
[1744629810334,7.5363,132.69,132.64,101.68145705]
[1744629810647,7.5363,132.69,132.65,11.66825705]
[1744629810821,7.536,132.7,132.66,11.66825705]
[1744629812254,20.26825705,132.71,132.66,101.68005705]
[1744629812537,27.80265705,132.73,132.68,11.66825705]
[1744629813024,16.1344,132.73,132.66,91.7631]
[1744629813220,27.80265705,132.73,132.68,11.66825705]
[1744629813630,27.80265705,132.73,132.67,7.5374]
[1744629813833,27.80265705,132.73,132.68,11.66825705]
[1744629814031,11.66825705,132.71,132.66,84.2253]
[1744629814321,11.66825705,132.71,132.66,95.89355705]
[1744629814944,34.9696,132.73,132.67,11.66825705]
[1744629815129,11.66825705,132.72,132.67,11.66825705]
[1744629815839,19.20325705,132.72,132.67,19.20555705]
[1744629816719,7.535,132.72,132.67,19.20555705]
[1744629816959,19.20325705,132.72,132.67,19.20555705]
[1744629817522,27.80255705,132.73,132.68,11.66825705]
[1744629817717,27.80255705,132.73,132.69,11.66825705]
[1744629817718,8.6,132.73,132.69,11.66825705]
[1744629817930,20.26825705,132.75,132.7,19.20395705]
[1744629818134,27.80145705,132.75,132.7,94.26825705]
[1744629818430,11.66825705,132.74,132.7,82.6]
[1744629819247,7.534,132.73,132.7,82.6]
[1744629819423,19.20195705,132.74,132.7,82.6]
[1744629819618,27.80145705,132.75,132.7,101.80395705]
[1744629821233,8.6,132.75,132.71,11.66825705]
[1744629821430,8.6,132.75,132.73,11.66825705]
[1744629821832,242.7148,132.77,132.73,11.66825705]
[1744629822328,235.183,132.77,132.74,11.66825705]
[1744629822654,0.063,132.77,132.74,11.66825705]
[1744629822956,7.5948,132.77,132.72,1.5344]
[1744629823130,11.66825705,132.76,132.72,1.5344]
[1744629823325,11.66825705,132.76,132.72,82.6]
[1744629823731,19.26305705,132.77,132.72,101.80285705]
[1744629823947,0.063,132.77,132.73,11.66825705]
[1744629824251,0.063,132.77,132.74,11.66825705]
[1744629824632,0.063,132.77,132.75,11.66825705]
[1744629825351,0.063,132.77,132.72,90.1342]
[1744629825531,0.063,132.77,132.73,11.66825705]
[1744629825739,0.063,132.77,132.74,11.66825705]
[1744629827249,0.063,132.77,132.73,11.66825705]
[1744629827750,0.063,132.77,132.74,11.66825705]
[1744629828454,0.063,132.77,132.73,11.66825705]
[1744629829444,0.063,132.77,132.72,90.1342]
[1744629829653,0.063,132.77,132.73,11.66825705]
[1744629829853,0.063,132.77,132.72,90.1342]
[1744629830358,0.063,132.77,132.73,11.66825705]
[1744629830964,0.063,132.77,132.72,94.26825705]
[1744629831250,11.73125705,132.77,132.72,90.1345]
[1744629831449,11.73125705,132.77,132.72,101.80275705]
[1744629831853,0.063,132.77,132.72,90.1345]
[1744629832229,11.73125705,132.77,132.72,82.6]
[1744629832435,7.5323,132.76,132.72,94.26825705]
[1744629832740,11.66825705,132.75,132.71,82.6]
[1744629833333,19.20055705,132.76,132.71,94.26825705]
[1744629833532,20.87365705,132.77,132.72,11.66825705]
[1744629833729,7.595,132.77,132.73,11.66825705]
[1744629833930,11.66825705,132.75,132.71,82.6]
[1744629834152,11.66825705,132.74,132.71,82.6]
[1744629834360,11.66825705,132.75,132.71,82.6]
[1744629834537,7.5331,132.75,132.71,94.26825705]
[1744629834856,0.063,132.77,132.73,11.66825705]
[1744629835161,0.063,132.77,132.74,11.66825705]
[1744629835362,0.063,132.77,132.73,11.66825705]
[1744629835530,0.063,132.77,132.74,11.66825705]
[1744629837358,0.063,132.77,132.73,82.6]
[1744629837568,11.73125705,132.77,132.73,82.6]
[1744629838356,11.66825705,132.76,132.73,82.6]
[1744629838535,7.5329,132.75,132.73,82.6]
[1744629838741,7.5329,132.75,132.71,11.66825705]
[1744629838941,7.5329,132.75,132.7,90.1357]
[1744629839435,7.5329,132.75,132.7,101.80395705]
[1744629839652,7.5329,132.75,132.7,90.1357]
[1744629839858,7.5329,132.75,132.71,11.66825705]
[1744629840965,7.5329,132.75,132.7,94.26825705]
[1744629841277,7.5329,132.75,132.71,11.66825705]
[1744629842338,30.56195705,132.77,132.71,11.66825705]
[1744629842539,11.66825705,132.76,132.7,90.1356]
[1744629842766,18.8937,132.77,132.71,11.66825705]
[1744629843035,11.66825705,132.76,132.71,11.66825705]
[1744629844101,18.8937,132.77,132.7,82.6]
[1744629844102,11.66825705,132.74,132.7,82.6]
[1744629844260,1.5329,132.74,132.7,82.6]
[1744629844464,11.66825705,132.72,132.66,101.94821862]
[1744629844692,11.66825705,132.72,132.66,101.80605705]
[1744629845373,7.5346,132.72,132.67,11.66825705]
[1744629845588,19.20285705,132.72,132.67,11.66825705]
[1744629846095,7.5346,132.72,132.67,11.66825705]
[1744629846288,7.5346,132.72,132.67,94.26825705]
[1744629846487,7.5346,132.72,132.67,82.6]
[1744629846672,19.20285705,132.72,132.67,94.26825705]
[1744629847198,11.66825705,132.7,132.64,90.1391]
[1744629847401,27.5446,132.68,132.64,0.0001]
[1744629847702,1.5446,132.68,132.64,11.66835705]
[1744629847883,11.66825705,132.7,132.64,11.66835705]
[1744629848191,0.14216157,132.7,132.64,0.0001]
[1744629848397,7.5374,132.67,132.64,0.0001]
[1744629848610,19.20565705,132.67,132.64,0.0001]
[1744629849276,16.1174,132.67,132.64,0.0001]
[1744629849992,27.78565705,132.67,132.64,0.0001]
[1744629850168,11.66825705,132.66,132.64,0.0001]
[1744629850368,20.73225705,132.65,132.64,0.0001]
[1744629850669,39.52406748,132.65,132.64,0.0001]
[1744629851186,9.064,132.65,132.64,0.0001]
[1744629851392,20.73225705,132.65,132.64,0.0001]
[1744629852271,39.38190591,132.65,132.64,0.0001]
[1744629852780,58.22840591,132.65,132.61,0.03]
[1744629852980,11.66825705,132.62,132.61,0.03]
[1744629853385,26.0,132.62,132.61,0.03]
[1744629853582,26.0,132.62,132.56,11.69825705]
[1744629853583,26.0,132.58,132.56,0.03]
[1744629853795,11.66825705,132.57,132.56,0.03]
[1744629854183,19.21135705,132.57,132.56,0.03]
[1744629854871,7.5431,132.57,132.56,0.03]
[1744629855066,19.21135705,132.57,132.56,0.03]
[1744629855282,7.5431,132.57,132.56,0.03]
[1744629855470,19.21135705,132.57,132.56,0.03]
[1744629855882,8.92,132.58,132.56,0.03]
[1744629855883,20.58825705,132.58,132.56,0.03]
[1744629856281,28.13095705,132.58,132.56,0.03]
[1744629856496,11.66825705,132.57,132.56,0.03]
[1744629857100,8.92,132.58,132.56,0.03]
[1744629857477,8.92,132.58,132.57,11.66825705]
[1744629857675,255.94825705,132.63,132.57,11.66825705]
[1744629857870,9.26,132.63,132.61,11.66825705]
[1744629858394,9.26,132.63,132.57,0.14216157]
[1744629858811,11.66825705,132.61,132.56,82.63]
[1744629859021,11.66825705,132.6,132.56,82.63]
[1744629859318,19.21045705,132.59,132.56,0.03]
[1744629859515,7.5422,132.59,132.56,0.03]
[1744629859816,11.66825705,132.58,132.56,0.03]
[1744629859975,7.5422,132.59,132.56,0.03]
[1744629860406,19.21045705,132.59,132.56,0.03]
[1744629860703,7.5416,132.6,132.56,11.69825705]
[1744629860924,19.20985705,132.6,132.56,0.03]
[1744629861316,7.5405,132.62,132.57,19.21135705]
[1744629861495,16.8,132.63,132.59,11.66825705]
[1744629862515,9.26,132.63,132.59,11.66825705]
[1744629862714,9.26,132.63,132.61,11.66825705]
[1744629863012,9.26,132.63,132.59,82.6]
[1744629863312,9.26,132.63,132.62,11.66825705]
[1744629863518,7.5382,132.66,132.62,11.66825705]
[1744629863896,11.66825705,132.65,132.6,94.26825705]
[1744629864205,11.66825705,132.62,132.58,94.26825705]
[1744629864414,18.64964886,132.65,132.58,11.66825705]
[1744629864415,11.66825705,132.63,132.58,11.66825705]
[1744629865200,11.66825705,132.62,132.58,11.66825705]
[1744629865408,7.5409,132.61,132.58,11.66825705]
[1744629865721,7.5409,132.61,132.57,13.27455705]
[1744629865924,7.5409,132.61,132.57,11.66825705]
[1744629866818,18.8481,132.64,132.57,11.66825705]
[1744629867026,18.8481,132.64,132.59,11.66825705]
[1744629867027,11.66825705,132.64,132.59,11.66825705]
[1744629867403,18.8452,132.66,132.6,11.66825705]
[1744629867599,18.8452,132.66,132.57,90.42742314]
[1744629867807,11.66825705,132.64,132.59,11.66825705]
[1744629868036,11.66825705,132.61,132.57,82.6]
[1744629868210,11.66825705,132.61,132.56,82.63]
[1744629868515,11.66825705,132.6,132.56,82.63]
[1744629868702,11.66825705,132.61,132.56,94.29825705]
[1744629869535,9.58,132.62,132.57,11.66825705]
[1744629869718,7.5411,132.61,132.57,11.66825705]
[1744629870432,21.24825705,132.62,132.59,11.66825705]
[1744629870433,9.58,132.62,132.59,11.66825705]
[1744629871225,17.1204,132.62,132.58,11.66825705]
[1744629873303,11.1977,132.67,132.6,11.66825705]
[1744629873621,7.538,132.66,132.62,11.66825705]
[1744629875009,19.20625705,132.66,132.61,11.66825705]
[1744629876616,19.20625705,132.66,132.62,11.66825705]
[1744629877040,7.538,132.66,132.62,94.26825705]
[1744629877331,0.063,132.69,132.63,11.66825705]
[1744629877510,7.5996,132.69,132.65,11.66825705]
[1744629877829,7.5996,132.69,132.63,82.6]
[1744629877830,7.5996,132.69,132.66,11.66825705]
[1744629878129,7.5993,132.69,132.63,82.6]
[1744629878323,7.5993,132.69,132.66,11.66825705]
[1744629878509,19.26755705,132.69,132.64,11.66825705]
[1744629878709,7.5993,132.69,132.65,11.66825705]
[1744629878908,7.5993,132.69,132.66,11.66825705]
[1744629879720,0.063,132.69,132.66,11.66825705]
[1744629880405,0.063,132.69,132.67,11.66825705]
[1744629880605,0.063,132.69,132.64,0.28432314]
[1744629880827,0.063,132.69,132.66,11.66825705]
[1744629881032,0.063,132.69,132.63,82.6]
[1744629881221,11.66825705,132.68,132.63,94.26825705]
[1744629881425,0.063,132.69,132.63,94.26825705]
[1744629881625,11.66825705,132.68,132.63,94.26825705]
[1744629881823,7.5374,132.67,132.64,11.66825705]
[1744629882127,7.5371,132.68,132.65,11.66825705]
[1744629882842,23.3365141,132.66,132.57,82.6]
[1744629883016,11.66825705,132.63,132.58,11.66825705]
[1744629883215,11.66825705,132.63,132.59,11.66825705]
[1744629883516,11.66825705,132.63,132.58,82.6]
[1744629883734,11.66825705,132.63,132.58,94.26825705]
[1744629883735,7.5403,132.62,132.58,94.26825705]
[1744629884125,19.20855705,132.62,132.58,82.6]
[1744629884321,11.66825705,132.61,132.58,82.6]
[1744629884727,7.5403,132.62,132.58,82.6]
[1744629884927,19.20855705,132.62,132.58,82.6]
[1744629885130,11.66825705,132.61,132.58,82.6]
[1744629885938,11.66825705,132.61,132.56,0.03]
[1744629885939,11.66825705,132.59,132.56,0.03]
[1744629886163,11.66825705,132.57,132.56,0.03]
[1744629886654,9.58,132.59,132.56,0.03]
[1744629886956,21.24825705,132.59,132.56,0.03]
[1744629887135,11.66825705,132.58,132.56,0.03]
[1744629888058,19.21115705,132.58,132.56,0.03]
[1744629888738,7.5429,132.58,132.56,0.03]
[1744629889457,9.58,132.59,132.56,0.03]
[1744629889751,28.79025705,132.59,132.56,0.03]
[1744629889954,11.66825705,132.58,132.56,0.03]
[1744629890144,7.5431,132.57,132.56,0.03]
[1744629892243,19.21135705,132.57,132.56,0.03]
[1744629892555,7.5431,132.57,132.56,0.03]
[1744629893446,21.24825705,132.59,132.56,0.03]
[1744629893853,11.66825705,132.57,132.56,0.03]
[1744629894048,19.21135705,132.57,132.56,0.03]
[1744629894926,19.21105705,132.58,132.56,0.03]
[1744629895132,16.8616,132.6,132.56,11.69825705]
[1744629895332,9.32,132.6,132.58,11.66825705]
[1744629896173,7.9149,132.64,132.56,82.63]
[1744629896344,11.66825705,132.62,132.56,82.63]
[1744629896545,7.5397,132.63,132.57,11.66825705]
[1744629896546,26.3891,132.63,132.57,11.66825705]
[1744629896739,7.5397,132.63,132.59,11.66825705]
[1744629897577,19.20795705,132.63,132.58,11.66825705]
[1744629897774,19.20795705,132.63,132.59,11.66825705]
[1744629898286,7.5397,132.63,132.59,11.66825705]
[1744629898448,7.5397,132.63,132.6,11.66825705]
[1744629898765,19.20795705,132.63,132.58,11.66825705]
[1744629899147,7.5397,132.63,132.59,11.66825705]
[1744629899548,9.32,132.65,132.61,11.66825705]
[1744629899855,0.063,132.67,132.63,11.66825705]
[1744629900064,0.063,132.67,132.61,1.5374]
[1744629900251,11.73125705,132.67,132.62,11.66825705]
[1744629900757,11.73125705,132.67,132.63,11.66825705]
[1744629900963,11.66825705,132.64,132.59,82.6]
[1744629901269,11.66825705,132.62,132.57,19.21115705]
[1744629901447,19.20865705,132.62,132.57,19.21115705]
[1744629901650,16.8594,132.64,132.59,11.66825705]
[1744629901848,0.063,132.67,132.59,82.6]
[1744629902049,0.063,132.67,132.6,12.09474176]
[1744629902260,0.063,132.67,132.64,11.66825705]
[1744629902463,0.063,132.67,132.64,94.26825705]
[1744629902662,0.063,132.67,132.66,11.66825705]
[1744629903266,0.063,132.67,132.64,82.6]
[1744629903573,19.26885705,132.67,132.62,11.66825705]
[1744629904551,0.063,132.67,132.63,11.66825705]
[1744629906171,0.063,132.67,132.62,7.5402]
[1744629906378,11.73125705,132.67,132.62,19.20845705]
[1744629906582,0.063,132.67,132.64,11.66825705]
[1744629907265,0.063,132.67,132.66,11.66825705]
[1744629907672,0.063,132.67,132.64,82.6]
[1744629907868,0.063,132.67,132.64,94.26825705]
[1744629908069,0.063,132.67,132.65,11.66825705]
[1744629908375,0.063,132.67,132.64,94.26825705]
[1744629908554,0.063,132.67,132.65,19.20685705]
[1744629909174,0.063,132.67,132.65,11.66825705]
[1744629909364,0.063,132.67,132.65,82.6]
[1744629909557,0.063,132.67,132.65,94.26825705]
[1744629910159,0.063,132.67,132.65,101.80675705]
[1744629910775,0.063,132.67,132.65,90.1385]
[1744629911076,0.063,132.67,132.65,101.80675705]
[1744629911280,0.063,132.67,132.66,19.20625705]
[1744629911573,0.063,132.67,132.66,113.90099881]
[1744629911773,0.0001,132.67,132.66,134.05184767]
[1744629913381,0.0001,132.67,132.66,102.23274176]
[1744629913682,0.0001,132.67,132.66,113.90099881]
[1744629913984,0.0001,132.67,132.66,102.23274176]
[1744629914592,0.0001,132.67,132.66,113.90099881]
[1744629914978,0.0001,132.67,132.66,132.55064767]
[1744629915770,0.063,132.69,132.67,82.5999]
[1744629915970,0.063,132.69,132.68,11.66825705]
[1744629916879,0.063,132.69,132.68,19.20515705]
[1744629917183,0.063,132.73,132.7,1.5886]
[1744629917367,0.063,132.73,132.72,12.09474176]
[1744629917570,0.063,132.73,132.72,23.76299881]
[1744629918070,0.063,132.73,132.72,11.66825705]
[1744629918270,0.063,132.73,132.7,82.88422314]
[1744629918482,0.063,132.73,132.72,11.66825705]
[1744629918972,0.063,132.73,132.72,19.20285705]
[1744629920382,0.063,132.73,132.72,7.5346]
[1744629920576,0.063,132.73,132.7,94.26815705]
[1744629920881,0.063,132.73,132.71,11.66825705]
[1744629921080,0.063,132.73,132.71,94.26815705]
[1744629921876,0.063,132.73,132.71,101.80275705]
[1744629923089,0.063,132.73,132.72,11.66825705]
[1744629923301,0.063,132.73,132.72,12.09474176]
[1744629924190,0.063,132.73,132.72,38.27899062]
[1744629924386,0.063,132.75,132.74,30.74439062]
[1744629924593,0.063,132.75,132.74,113.34429062]
[1744629926678,0.063,132.75,132.74,120.87779062]
[1744629927275,0.063,132.77,132.76,26.14216157]
[1744629927475,0.063,132.79,132.77,0.42648471]
[1744629927670,0.063,132.79,132.78,42.41264767]
[1744629928083,0.0001,132.79,132.78,42.41264767]
[1744629928373,0.063,132.82,132.81,19.07613357]
[1744629928584,0.063,132.82,132.81,113.28129062]
[1744629928798,0.063,132.82,132.81,90.49288471]
[1744629928985,0.063,132.82,132.81,102.16114176]
[1744629930478,0.063,132.82,132.81,120.81079062]
[1744629931878,0.063,132.82,132.81,102.16114176]
[1744629933891,0.063,132.82,132.81,120.81079062]
[1744629935113,0.063,132.83,132.82,94.14215705]
[1744629935820,0.063,132.83,132.82,82.4739]
[1744629936315,0.063,132.83,132.82,94.14215705]
[1744629936611,0.063,132.83,132.82,120.74719062]
[1744629936810,0.063,132.83,132.82,90.42928471]
[1744629936990,0.063,132.83,132.82,102.09754176]
[1744629937184,0.063,132.83,132.82,90.42928471]
[1744629937381,0.063,132.83,132.82,94.14215705]
[1744629937587,0.063,132.83,132.82,82.4739]
[1744629937788,0.063,132.83,132.82,94.14215705]
[1744629937985,11.73125705,132.83,132.77,82.4739]
[1744629938188,11.66825705,132.79,132.74,94.14215705]
[1744629938384,11.66825705,132.79,132.74,19.20145705]
[1744629939009,1.5874,132.82,132.77,0.14216157]
[1744629939212,13.25565705,132.82,132.77,11.81041862]
[1744629939813,11.66825705,132.81,132.77,0.42648471]
[1744629940115,11.66825705,132.79,132.75,0.42648471]
[1744629940295,11.66825705,132.8,132.75,12.09474176]
[1744629940609,11.66825705,132.8,132.75,11.95258019]
[1744629941113,7.5299,132.81,132.75,0.42648471]
[1744629941299,11.66825705,132.79,132.75,7.95928471]
[1744629941809,7.5301,132.8,132.75,19.62754176]
[1744629942113,19.19835705,132.8,132.75,19.62754176]
[1744629942313,7.5297,132.81,132.76,11.66825705]
[1744629942519,20.78485705,132.82,132.77,11.66825705]
[1744629942717,20.78485705,132.82,132.77,94.14215705]
[1744629943713,11.66825705,132.81,132.77,82.4739]
[1744629944012,20.78485705,132.82,132.77,101.67385705]
[1744629944313,7.5916,132.83,132.79,11.66825705]
[1744629944625,0.063,132.83,132.79,94.14215705]
[1744629944814,0.063,132.83,132.81,11.66825705]
[1744629945013,0.063,132.83,132.81,94.14215705]
[1744629945199,0.063,132.83,132.82,30.74439062]
[1744629945516,0.063,132.84,132.83,7.95488471]
[1744629945694,0.0001,132.84,132.83,132.41494767]
[1744629945896,0.0001,132.84,132.83,120.74669062]
[1744629946218,0.0001,132.84,132.83,132.41494767]
[1744629947209,0.0001,132.84,132.83,146.26477831]
[1744629947407,0.063,132.88,132.86,26.0]
[1744629947698,0.063,132.9,132.88,0.28432314]
[1744629947899,0.063,132.9,132.89,18.59317237]
[1744629948101,0.063,132.9,132.89,82.90038471]
[1744629948327,0.063,132.9,132.89,101.49355708]
[1744629948621,0.063,132.9,132.89,82.4739]
[1744629948996,0.063,132.9,132.87,101.06707237]
[1744629949202,18.59317237,132.88,132.85,90.001]
[1744629949399,26.18077237,132.9,132.85,108.59427237]
[1744629950716,18.59317237,132.89,132.85,82.4739]
[1744629951098,18.59317237,132.89,132.85,90.001]
[1744629951295,0.063,132.9,132.88,18.59317237]
[1744629951526,0.063,132.9,132.89,19.01965708]
[1744629951821,0.063,132.9,132.89,120.14320594]
[1744629952417,0.063,132.9,132.89,101.49355708]
[1744629952812,0.063,132.9,132.89,109.01855708]
[1744629954205,0.063,132.9,132.89,82.4739]
[1744629960524,6.2443,132.89,132.84,82.4739]
[1744629960705,18.59317237,132.86,132.84,82.4739]
[1744629962224,7.5264,132.87,132.84,82.4739]
[1744629962425,26.11957237,132.87,132.84,82.4739]
[1744629962625,18.59317237,132.86,132.84,82.4739]
[1744629963025,7.5264,132.87,132.84,82.4739]
[1744629963330,18.59317237,132.85,132.82,82.4739]
[1744629963724,18.59317237,132.84,132.82,82.4739]
[1744629963915,18.59317237,132.85,132.82,82.4739]
[1744629964324,26.12047237,132.85,132.82,82.4739]
[1744629964930,18.59317237,132.85,132.82,82.4739]
[1744629965634,26.12047237,132.85,132.82,82.4739]
[1744629967113,18.59317237,132.83,132.8,82.4739]
[1744629967637,18.59317237,132.82,132.8,82.4739]
[1744629967931,27.67317237,132.81,132.8,82.4739]
[1744629968338,27.67317237,132.81,132.76,101.13007237]
[1744629968515,27.67317237,132.81,132.76,82.5369]
[1744629968711,7.5301,132.8,132.76,101.13007237]
[1744629969018,18.59317237,132.77,132.76,82.5369]
[1744629969224,18.59317237,132.79,132.76,82.5369]
[1744629970026,7.5301,132.8,132.76,82.5369]
[1744629970336,18.59317237,132.79,132.76,82.5369]
[1744629971140,9.08,132.81,132.76,101.13007237]
[1744629971141,18.59317237,132.8,132.76,101.13007237]
[1744629971520,27.67317237,132.81,132.76,101.13007237]
[1744629972226,27.67317237,132.81,132.76,108.66237237]
[1744629972625,35.20277237,132.81,132.76,90.0692]
[1744629972818,35.20277237,132.81,132.76,108.66237237]
[1744629973613,26.12327237,132.8,132.76,82.5369]
[1744629973819,18.59317237,132.79,132.76,82.5369]
[1744629974020,18.59317237,132.79,132.76,90.0692]
[1744629974220,18.59317237,132.8,132.76,108.66237237]
[1744629974622,27.67317237,132.81,132.76,108.66237237]
[1744629974823,15.5034,132.83,132.78,18.59317237]
[1744629975028,42.87657237,132.83,132.78,101.06707237]
[1744629975223,34.09657237,132.83,132.78,101.06707237]
[1744629975424,34.09657237,132.83,132.78,102.66707237]
[1744629975624,18.59317237,132.82,132.78,102.66707237]
[1744629975824,18.59317237,132.82,132.78,110.19797237]
[1744629976446,15.5034,132.83,132.78,110.19797237]
[1744629976631,18.59317237,132.82,132.78,91.6048]
[1744629976828,18.59317237,132.8,132.78,84.0739]
[1744629977344,11.64450733,132.79,132.78,84.0739]
[1744629977536,11.64450733,132.79,132.78,1.6]
[1744629979020,19.17510733,132.79,132.78,1.6]
[1744629980352,18.67510733,132.79,132.78,1.6]
[1744629980750,37.32475619,132.79,132.77,1.6]
[1744629980927,26.0,132.75,132.74,0.063]
[1744629981127,37.64450733,132.75,132.74,0.063]
[1744629982171,26.0,132.75,132.74,0.063]
[1744629982450,45.17740733,132.75,132.74,0.063]
[1744629985227,63.82705619,132.75,132.74,0.063]
[1744629986753,45.17740733,132.75,132.74,0.063]
[1744629991156,33.5329,132.75,132.74,0.063]
[1744629991534,11.64450733,132.76,132.74,0.063]
[1744629991738,7.5321,132.77,132.74,0.063]
[1744629991739,19.17660733,132.77,132.74,0.063]
[1744629992977,11.64450733,132.75,132.74,0.063]
[1744629994984,19.17740733,132.75,132.74,0.063]
[1744629995159,26.0,132.72,132.69,0.03]
[1744629995363,34.78,132.71,132.69,0.03]
[1744629995681,11.64450733,132.7,132.69,0.03]
[1744629997069,7.5357,132.7,132.69,0.03]
[1744629997274,19.18020733,132.7,132.69,0.03]
[1744629999994,8.78,132.71,132.69,0.03]
[1744630000175,19.17860733,132.73,132.69,0.03]
[1744630000495,27.95860733,132.73,132.69,0.03]
[1744630000782,11.64450733,132.72,132.69,0.03]
[1744630002278,19.17920733,132.72,132.69,0.03]
[1744630003186,19.17920733,132.72,132.69,82.5039]
[1744630003387,11.64450733,132.72,132.69,82.5039]
[1744630003560,20.42450733,132.73,132.69,90.0402]
[1744630003761,6.408,132.8,132.73,0.14216157]
[1744630004078,262.65540733,132.79,132.74,11.64450733]
[1744630004285,251.0109,132.79,132.75,11.64450733]
[1744630004866,243.48,132.79,132.76,11.64450733]
[1744630005274,243.48,132.79,132.77,19.17620733]
[1744630005573,243.48,132.79,132.76,90.006]
[1744630005885,8.62,132.79,132.76,101.65050733]
[1744630006787,0.03,132.82,132.77,11.7866689]
[1744630007080,11.67450733,132.82,132.77,94.2605689]
[1744630007287,0.03,132.82,132.79,18.62056179]
[1744630008272,0.03,132.82,132.81,18.76272336]
[1744630008476,0.03,132.82,132.81,19.0470465]
[1744630008677,0.03,132.82,132.81,0.42648471]
[1744630008877,0.03,132.82,132.81,19.0470465]
[1744630009485,0.03,132.82,132.81,26.5765465]
[1744630010981,0.03,132.82,132.81,7.95598471]
[1744630011171,0.03,132.82,132.81,26.5765465]
[1744630011372,0.03,132.82,132.81,7.95598471]
[1744630011670,0.03,132.82,132.81,26.5765465]
[1744630012987,0.03,132.82,132.81,45.22619536]
[1744630013296,0.03,132.82,132.81,45.30619536]
[1744630013469,0.03,132.82,132.81,26.6565465]
[1744630014564,0.03,132.82,132.81,26.5765465]
[1744630017199,0.03,132.82,132.81,82.4739]
[1744630018597,18.65056179,132.82,132.81,82.4739]
[1744630018797,18.65056179,132.82,132.76,110.42882336]
[1744630019005,18.62056179,132.81,132.77,0.08]
[1744630019397,7.5301,132.8,132.77,0.08]
[1744630020087,26.15066179,132.8,132.77,82.5539]
[1744630020496,18.62056179,132.78,132.77,82.5539]
[1744630020696,18.62056179,132.78,132.77,0.08]
[1744630020903,18.62056179,132.78,132.73,0.08]
[1744630021095,26.3554,132.8,132.73,82.5539]
[1744630021280,18.62056179,132.79,132.74,26.15356179]
[1744630021485,18.62056179,132.8,132.75,18.76272336]
[1744630022094,26.15076179,132.8,132.75,18.76272336]
[1744630024787,26.15086179,132.8,132.75,26.29552336]
[1744630026609,26.15086179,132.8,132.75,108.76942336]
[1744630027605,8.65,132.82,132.75,82.4739]
[1744630027606,18.62056179,132.78,132.75,82.4739]
[1744630027798,18.62056179,132.76,132.73,82.4739]
[1744630028002,18.62056179,132.74,132.69,108.66046179]
[1744630028198,18.62056179,132.73,132.71,0.08]
[1744630028609,18.62056179,132.72,132.71,0.08]
[1744630029210,11.65760533,132.72,132.71,0.08]
[1744630029595,19.19220533,132.72,132.71,0.08]
[1744630030295,19.19220533,132.72,132.69,82.5039]
[1744630030296,7.5335,132.74,132.69,82.5039]
[1744630030498,19.19110533,132.74,132.69,101.69770533]
[1744630030702,7.5335,132.74,132.69,90.0401]
[1744630031011,11.65760533,132.73,132.69,82.5039]
[1744630031210,18.65233828,132.7,132.69,82.5039]
[1744630031396,18.65233828,132.7,132.69,0.03]
[1744630031601,26.18803828,132.7,132.69,0.03]
[1744630035305,53.45768714,132.7,132.69,0.0001]
[1744630035614,53.59984871,132.7,132.69,0.0001]
[1744630035990,8.62,132.7,132.69,0.0001]
[1744630037307,34.80803828,132.7,132.69,0.0001]
[1744630037917,27.27233828,132.7,132.69,0.0001]
[1744630038492,8.62,132.7,132.69,0.0001]
[1744630038912,27.27233828,132.7,132.69,0.0001]